bitfinex/quotes_BTCUSD_20241018
["timestamp","ask_amount","ask_price","bid_price","bid_amount"]
[1729231181692,0.39659994,68057.0,68056.0,0.16141717]
[1729231182348,0.39247151,68057.0,68056.0,0.16141717]
[1729231182562,0.39247151,68057.0,68056.0,0.01448017]
[1729231182804,0.40147151,68057.0,68056.0,0.01448017]
[1729231183014,0.40147151,68057.0,68056.0,0.16141717]
[1729231183888,0.41147151,68057.0,68056.0,0.16241717]
[1729231184355,0.40147151,68057.0,68056.0,0.16141717]
[1729231184589,0.39247151,68057.0,68056.0,0.16241717]
[1729231184835,0.41147151,68057.0,68056.0,0.16241717]
[1729231185053,0.41147151,68057.0,68056.0,0.01548017]
[1729231185285,0.41147151,68057.0,68056.0,0.16241717]
[1729231185953,0.41147151,68057.0,68056.0,0.01548017]
[1729231186181,0.41147151,68057.0,68056.0,0.16241717]
[1729231187128,0.41148968,68057.0,68056.0,0.16241717]
[1729231187351,0.41148968,68057.0,68056.0,0.01548017]
[1729231188461,0.55842468,68057.0,68056.0,0.01548017]
[1729231188710,0.55842468,68057.0,68056.0,0.02199932]
[1729231188711,0.57342468,68057.0,68056.0,0.02199932]
[1729231188935,0.34460376,68057.0,68056.0,0.01734307]
[1729231189189,0.151937,68056.0,68055.0,1.0]
[1729231189425,0.31477776,68056.0,68055.0,1.0]
[1729231190349,0.54359868,68056.0,68055.0,1.0]
[1729231190565,0.55259868,68056.0,68055.0,1.001]
[1729231191019,0.55259868,68056.0,68055.0,1.01763742]
[1729231191239,0.56059868,68056.0,68055.0,1.01763742]
[1729231192113,0.7094725,68056.0,68055.0,1.01763742]
[1729231192349,0.56051335,68056.0,68055.0,1.01763742]
[1729231193243,0.32669243,68056.0,68055.0,1.01763742]
[1729231193474,0.55551335,68056.0,68055.0,1.01763742]
[1729231194663,0.68775441,68056.0,68055.0,1.01763742]
[1729231196454,0.68775441,68056.0,68055.0,1.001]
[1729231196664,0.68770248,68056.0,68055.0,1.001]
[1729231196933,0.57329202,68056.0,68055.0,1.01764543]
[1729231197392,0.68770248,68056.0,68055.0,1.01764543]
[1729231197621,0.55546814,68056.0,68055.0,1.01764543]
[1729231198798,0.32664722,68056.0,68055.0,1.01764543]
[1729231199035,0.44105768,68056.0,68055.0,1.01764543]
[1729231199260,0.55546814,68056.0,68055.0,1.01764543]
[1729231199715,0.68769275,68056.0,68055.0,1.01764543]
[1729231200865,0.68766751,68056.0,68055.0,1.01764543]
[1729231201567,0.54073051,68056.0,68055.0,1.01764543]
[1729231201792,0.57325705,68056.0,68055.0,1.01764543]
[1729231202328,0.57325705,68056.0,68055.0,1.01930143]
[1729231202561,0.42632005,68056.0,68055.0,1.01930143]
[1729231203023,0.29410139,68056.0,68055.0,1.01930143]
[1729231203499,0.44103839,68056.0,68055.0,1.01930143]
[1729231204877,0.29410139,68056.0,68055.0,1.01930143]
[1729231205333,0.29410139,68056.0,68055.0,1.01494453]
[1729231206053,0.29410139,68056.0,68055.0,1.16188353]
[1729231206256,0.29410139,68056.0,68055.0,1.33978353]
[1729231206719,0.17969093,68056.0,68055.0,1.33978353]
[1729231206944,0.29410139,68056.0,68055.0,1.33978353]
[1729231207447,0.17969093,68056.0,68055.0,1.48874268]
[1729231207910,0.2678279,68056.0,68055.0,1.48874268]
[1729231208383,0.2598279,68056.0,68055.0,1.48874268]
[1729231208862,0.2618279,68056.0,68055.0,1.48874268]
[1729231209097,0.2598279,68056.0,68055.0,1.48874268]
[1729231209318,0.25980261,68056.0,68055.0,1.48874268]
[1729231209538,0.25080261,68056.0,68055.0,1.48774268]
[1729231209803,0.25480261,68056.0,68055.0,1.48774268]
[1729231210332,0.25080261,68056.0,68055.0,1.48774268]
[1729231210563,0.25180261,68056.0,68055.0,1.48874268]
[1729231211017,0.25180261,68056.0,68055.0,1.48774268]
[1729231211278,0.25280261,68056.0,68055.0,1.48774268]
[1729231212178,0.25180261,68056.0,68055.0,1.48774268]
[1729231212864,0.004,68056.0,68055.0,1.48774268]
[1729231213326,0.04806316,68056.0,68055.0,1.48774268]
[1729231213808,0.16330162,68056.0,68055.0,1.48774268]
[1729231215153,0.04889116,68056.0,68055.0,1.48774268]
[1729231215377,0.04889116,68056.0,68055.0,1.51074268]
[1729231216503,0.04589116,68056.0,68055.0,1.51074268]
[1729231216751,0.001828,68056.0,68055.0,1.51174268]
[1729231217780,0.000828,68056.0,68055.0,1.51174268]
[1729231218352,0.000828,68056.0,68055.0,1.51274268]
[1729231222883,0.04489116,68056.0,68055.0,1.51274268]
[1729231223548,0.000828,68056.0,68055.0,1.51274268]
[1729231226048,0.000828,68056.0,68055.0,1.48974268]
[1729231226715,0.04487546,68056.0,68055.0,1.48974268]
[1729231226937,0.000828,68056.0,68055.0,1.48974268]
[1729231227370,0.04487546,68056.0,68055.0,1.48974268]
[1729231227588,0.000828,68056.0,68055.0,1.48974268]
[1729231242514,0.000828,68056.0,68055.0,1.51774268]
[1729231243418,0.000828,68056.0,68055.0,1.52907603]
[1729231244070,0.000828,68056.0,68055.0,1.52807603]
[1729231244757,0.001828,68056.0,68055.0,1.53107603]
[1729231244969,0.001828,68056.0,68055.0,1.54107603]
[1729231245190,0.002828,68056.0,68055.0,1.54107603]
[1729231250779,0.002828,68056.0,68055.0,1.42274268]
[1729231251016,0.002828,68056.0,68055.0,1.32384268]
[1729231255567,0.001828,68056.0,68055.0,1.31984268]
[1729231255811,0.000828,68056.0,68055.0,1.30984268]
[1729231256031,0.000828,68056.0,68055.0,1.31584268]
[1729231257872,0.000828,68056.0,68055.0,1.39854268]
[1729231269923,0.000828,68056.0,68055.0,1.48854268]
[1729231278193,0.000828,68056.0,68055.0,1.51154268]
[1729231282666,0.000828,68056.0,68055.0,1.31584268]
[1729231283584,0.000828,68056.0,68055.0,1.43664268]
[1729231283847,0.000828,68056.0,68055.0,1.51954268]
[1729231284061,0.000828,68056.0,68055.0,1.62454268]
[1729231287433,0.000828,68056.0,68055.0,1.63683637]
[1729231290876,0.000828,68056.0,68055.0,1.63683481]
[1729231292671,0.000828,68056.0,68055.0,1.76124527]
[1729231294990,0.000828,68056.0,68055.0,1.75524527]
[1729231295282,0.000828,68056.0,68055.0,1.76224527]
[1729231295526,0.22314079,68078.0,68072.0,0.005]
[1729231295759,0.22314079,68078.0,68077.0,0.146892]
[1729231295995,0.22314079,68078.0,68077.0,0.30814328]
[1729231295996,0.000828,68078.0,68077.0,0.30814328]
[1729231296246,0.000828,68078.0,68077.0,0.32180689]
[1729231296916,0.001828,68078.0,68077.0,0.32180689]
[1729231297363,0.001828,68078.0,68077.0,0.43621735]
[1729231297824,0.001828,68078.0,68077.0,0.32180689]
[1729231298036,0.000828,68078.0,68077.0,0.32180689]
[1729231298258,0.000828,68078.0,68077.0,0.30951476]
[1729231298492,0.001828,68078.0,68077.0,0.34977123]
[1729231300530,0.001828,68078.0,68077.0,0.59218169]
[1729231301209,0.001828,68078.0,68077.0,0.76648169]
[1729231301435,0.001828,68078.0,68077.0,0.77648169]
[1729231302122,0.001828,68078.0,68077.0,0.66204488]
[1729231302601,0.001828,68078.0,68077.0,0.77645534]
[1729231303990,0.001828,68078.0,68077.0,0.66204488]
[1729231304463,0.001828,68078.0,68077.0,0.19062276]
[1729231304692,0.084228,68078.0,68077.0,0.04166361]
[1729231304921,0.001828,68078.0,68077.0,0.18855561]
[1729231305371,0.001828,68078.0,68077.0,0.33751476]
[1729231305612,0.001828,68078.0,68077.0,0.32351476]
[1729231305855,0.000828,68078.0,68077.0,0.31551476]
[1729231306079,0.001828,68078.0,68077.0,0.32751476]
[1729231306314,0.000828,68078.0,68077.0,0.30951476]
[1729231306851,0.001828,68078.0,68077.0,0.41961476]
[1729231307095,0.001828,68078.0,68077.0,0.51531476]
[1729231307343,0.001828,68078.0,68077.0,0.62531476]
[1729231307570,0.001828,68078.0,68077.0,0.63753694]
[1729231307797,0.001828,68078.0,68077.0,0.62531476]
[1729231308022,0.000828,68078.0,68077.0,0.62431476]
[1729231308244,0.001828,68078.0,68077.0,0.64988934]
[1729231308688,0.000828,68078.0,68077.0,0.64988934]
[1729231308917,0.001828,68078.0,68077.0,0.64988934]
[1729231309146,0.000828,68078.0,68077.0,0.64988934]
[1729231309601,0.000828,68078.0,68077.0,0.63831476]
[1729231309822,0.000828,68078.0,68077.0,0.650535]
[1729231310063,0.001828,68078.0,68077.0,0.664535]
[1729231315969,0.001828,68078.0,68077.0,0.7809456]
[1729231316196,0.001828,68078.0,68077.0,0.7789456]
[1729231316427,0.001828,68078.0,68077.0,0.66453514]
[1729231317977,0.000828,68078.0,68077.0,0.63653514]
[1729231318194,0.000828,68078.0,68077.0,0.7789456]
[1729231318653,0.000828,68078.0,68077.0,0.7649456]
[1729231319093,0.000828,68078.0,68077.0,0.7789456]
[1729231319775,0.000828,68078.0,68077.0,0.7649456]
[1729231320223,0.000828,68078.0,68077.0,0.7509456]
[1729231321121,0.000828,68078.0,68077.0,0.7649456]
[1729231321618,0.000828,68078.0,68077.0,0.7789456]
[1729231324949,0.000828,68078.0,68077.0,0.77897094]
[1729231326830,0.000828,68078.0,68077.0,0.76497094]
[1729231328001,0.000828,68078.0,68077.0,0.75097094]
[1729231328244,0.000828,68078.0,68077.0,0.76497094]
[1729231328461,0.000828,68078.0,68077.0,0.77897094]
[1729231328676,0.000828,68078.0,68077.0,0.76497094]
[1729231329154,0.000828,68078.0,68077.0,0.77897094]
[1729231330636,0.000828,68078.0,68077.0,0.82452757]
[1729231332428,0.000828,68078.0,68077.0,0.82453825]
[1729231332870,0.000828,68078.0,68077.0,0.81229253]
[1729231333091,0.000828,68078.0,68077.0,0.82455346]
[1729231335291,0.000828,68078.0,68077.0,0.93896392]
[1729231335955,0.000828,68078.0,68077.0,0.710143]
[1729231336175,0.000828,68078.0,68077.0,0.79655346]
[1729231336640,0.000828,68078.0,68077.0,0.710143]
[1729231336867,0.000828,68078.0,68077.0,0.81055346]
[1729231337089,0.000828,68078.0,68077.0,0.696143]
[1729231337303,0.000828,68078.0,68077.0,0.81055346]
[1729231338214,0.000828,68078.0,68077.0,0.79655346]
[1729231338447,0.000828,68078.0,68077.0,0.81055346]
[1729231338689,0.000828,68078.0,68077.0,0.82455346]
[1729231338908,0.000828,68078.0,68077.0,0.81055346]
[1729231339356,0.000828,68078.0,68077.0,0.82455346]
[1729231340252,0.000828,68078.0,68077.0,0.81229253]
[1729231340488,0.000828,68078.0,68077.0,0.82456549]
[1729231340721,0.0811,68104.0,68099.0,0.146845]
[1729231340939,0.0811,68104.0,68099.0,0.29580415]
[1729231341161,0.000828,68108.0,68099.0,0.32206541]
[1729231342107,0.000828,68108.0,68099.0,0.30979686]
[1729231342757,0.000828,68108.0,68099.0,0.33779686]
[1729231342979,0.000828,68108.0,68099.0,0.32379686]
[1729231343430,0.000828,68108.0,68099.0,0.33779686]
[1729231344748,0.000828,68108.0,68099.0,0.32379686]
[1729231345179,0.000828,68108.0,68099.0,0.33779686]
[1729231350487,0.001028,68100.0,68099.0,0.33779686]
[1729231350918,0.001028,68100.0,68099.0,0.58310965]
[1729231351131,0.001028,68100.0,68099.0,0.52656029]
[1729231351348,0.001028,68100.0,68099.0,0.53156029]
[1729231352454,0.001028,68100.0,68099.0,0.70906029]
[1729231352677,0.001028,68100.0,68099.0,0.77776029]
[1729231352912,0.001028,68100.0,68099.0,0.79176029]
[1729231353201,0.001028,68100.0,68099.0,0.80576029]
[1729231353413,0.001028,68100.0,68099.0,0.79176029]
[1729231353619,0.001028,68100.0,68099.0,0.80576029]
[1729231354475,0.001028,68100.0,68099.0,0.79176029]
[1729231354693,0.001028,68100.0,68099.0,0.80576029]
[1729231358392,0.001028,68100.0,68099.0,0.63999686]
[1729231359521,0.001028,68100.0,68099.0,0.63499686]
[1729231359739,0.001028,68100.0,68099.0,0.19095186]
[1729231359970,0.24829143,68100.0,68099.0,0.19095186]
[1729231360403,0.24829143,68100.0,68099.0,0.014]
[1729231360620,0.48803343,68100.0,68099.0,0.014]
[1729231360875,0.48803343,68100.0,68099.0,0.028]
[1729231361099,0.48803343,68100.0,68099.0,0.02862618]
[1729231361100,0.34119143,68100.0,68099.0,0.02862618]
[1729231361345,0.24990566,68100.0,68081.0,0.293764]
[1729231361585,0.293705,68096.0,68095.0,0.22231279]
[1729231361804,0.146858,68093.0,68088.0,0.36917979]
[1729231362046,0.33766276,68098.0,68089.0,0.146864]
[1729231362297,0.33766276,68098.0,68082.0,0.14895915]
[1729231362298,0.16576343,68089.0,68082.0,0.14895915]
[1729231362532,0.0776,68088.0,68087.0,0.14687]
[1729231363172,0.0776,68088.0,68084.0,0.293754]
[1729231363387,0.0776,68088.0,68087.0,0.14687]
[1729231365547,0.0806,68088.0,68087.0,0.14687]
[1729231365820,0.0776,68088.0,68087.0,0.14687]
[1729231366260,0.0836,68088.0,68087.0,0.14687]
[1729231366477,0.0836,68088.0,68084.0,0.293754]
[1729231366690,0.0836,68088.0,68087.0,0.14687]
[1729231367130,0.0836,68088.0,68087.0,0.15918622]
[1729231367796,0.1824,68088.0,68087.0,0.15918622]
[1729231368023,0.1834,68088.0,68087.0,0.01231622]
[1729231368249,0.34916343,68088.0,68082.0,0.293762]
[1729231368493,0.1774,68088.0,68087.0,0.01231622]
[1729231368711,0.1774,68088.0,68086.0,0.146871]
[1729231368933,0.1824,68088.0,68087.0,0.01231622]
[1729231369152,0.1784,68088.0,68087.0,0.01231622]
[1729231369365,0.1784,68088.0,68083.0,0.293757]
[1729231369366,0.1774,68088.0,68083.0,0.293757]
[1729231369578,0.34816343,68088.0,68087.0,0.01231622]
[1729231369794,0.34816343,68088.0,68083.0,0.293757]
[1729231369795,0.34416343,68088.0,68086.0,0.146872]
[1729231370012,0.34416343,68088.0,68087.0,0.01231622]
[1729231370013,0.34816343,68088.0,68087.0,0.01231622]
[1729231370441,0.34416343,68088.0,68086.0,0.146872]
[1729231370669,0.16576343,68087.0,68086.0,0.146872]
[1729231370885,0.16576343,68087.0,68084.0,0.146876]
[1729231371109,0.31263943,68085.0,68080.0,0.146884]
[1729231371347,0.146888,68079.0,68073.0,0.22231279]
[1729231371563,0.0776,68079.0,68078.0,0.148546]
[1729231372269,0.0776,68079.0,68078.0,0.001656]
[1729231372483,0.0776,68079.0,68078.0,0.148546]
[1729231373336,0.0786,68079.0,68078.0,0.162546]
[1729231373565,0.0776,68079.0,68078.0,0.148546]
[1729231373794,0.0776,68079.0,68078.0,0.001656]
[1729231374225,0.0776,68079.0,68078.0,0.162546]
[1729231374438,0.0776,68079.0,68078.0,0.015656]
[1729231374872,0.0776,68079.0,68078.0,0.001656]
[1729231375109,0.227488,68079.0,68078.0,0.001656]
[1729231375343,0.29588824,68079.0,68078.0,0.001656]
[1729231375571,0.227488,68079.0,68078.0,0.001656]
[1729231377603,0.317588,68079.0,68078.0,0.001656]
[1729231377832,0.324588,68079.0,68078.0,0.001656]
[1729231378710,0.322588,68079.0,68078.0,0.001656]
[1729231379325,0.319588,68079.0,68078.0,0.001656]
[1729231379745,0.334588,68079.0,68078.0,0.003656]
[1729231380763,0.48354715,68079.0,68078.0,0.003656]
[1729231382177,0.334588,68079.0,68078.0,0.003656]
[1729231382392,0.336588,68079.0,68078.0,0.003656]
[1729231383225,0.346588,68079.0,68078.0,0.003656]
[1729231383415,0.344588,68079.0,68078.0,0.003656]
[1729231385114,0.346588,68079.0,68078.0,0.003656]
[1729231385706,0.49554715,68079.0,68078.0,0.003656]
[1729231385913,0.346588,68079.0,68078.0,0.003656]
[1729231386132,0.344588,68079.0,68078.0,0.003656]
[1729231386978,0.346588,68079.0,68078.0,0.003656]
[1729231388003,0.57534938,68079.0,68078.0,0.003656]
[1729231388204,0.53083243,68079.0,68078.0,0.003656]
[1729231390099,0.64521312,68079.0,68078.0,0.003656]
[1729231390300,0.53083243,68079.0,68078.0,0.003656]
[1729231392024,0.64521312,68079.0,68078.0,0.003656]
[1729231392234,0.53083243,68079.0,68078.0,0.003656]
[1729231392442,0.64521312,68079.0,68078.0,0.003656]
[1729231392681,0.53083243,68079.0,68078.0,0.003656]
[1729231393363,0.231709,68069.0,68068.0,0.001656]
[1729231393580,0.46047038,68069.0,68068.0,0.001656]
[1729231393787,0.46247038,68069.0,68068.0,0.001656]
[1729231394249,0.46047038,68069.0,68068.0,0.001656]
[1729231394680,0.46247038,68069.0,68068.0,0.001656]
[1729231394892,0.46447038,68069.0,68068.0,0.001656]
[1729231395117,0.61921992,68069.0,68068.0,0.001656]
[1729231395334,0.62321992,68069.0,68068.0,0.001656]
[1729231395772,0.247709,68069.0,68068.0,0.001656]
[1729231396428,0.243709,68069.0,68068.0,0.001656]
[1729231396844,0.256709,68069.0,68068.0,0.002656]
[1729231397048,0.42271952,68069.0,68068.0,0.002656]
[1729231397665,0.42071952,68069.0,68068.0,0.002656]
[1729231397915,0.42871952,68069.0,68068.0,0.003656]
[1729231398350,0.159909,68069.0,68068.0,0.002656]
[1729231398553,0.013,68069.0,68068.0,0.002656]
[1729231398770,0.008,68069.0,68068.0,0.149567]
[1729231399033,0.008,68069.0,68068.0,0.47714639]
[1729231399272,0.93783952,68090.0,68068.0,0.32923539]
[1729231399540,0.014,68069.0,68068.0,0.32718724]
[1729231399742,0.45975752,68086.0,68068.0,0.01426572]
[1729231399950,0.146881,68083.0,68077.0,0.14689]
[1729231400156,0.146878,68084.0,68071.0,0.29381]
[1729231400367,0.16601052,68082.0,68078.0,0.01251692]
[1729231400576,0.146885,68081.0,68073.0,0.293802]
[1729231400783,0.146885,68081.0,68079.0,0.01250852]
[1729231400995,0.16601052,68078.0,68070.0,0.0988]
[1729231401209,0.16601052,68074.0,68073.0,0.22231279]
[1729231401439,0.16601052,68074.0,68068.0,0.002656]
[1729231401646,0.146909,68069.0,68068.0,0.001656]
[1729231402521,0.147909,68069.0,68068.0,0.006656]
[1729231402971,0.146909,68069.0,68068.0,0.001656]
[1729231403181,0.005,68069.0,68068.0,0.001656]
[1729231403607,0.002,68069.0,68068.0,0.001656]
[1729231403811,0.005,68069.0,68068.0,0.001656]
[1729231404229,0.002,68069.0,68068.0,0.001656]
[1729231404672,0.007,68069.0,68068.0,0.001656]
[1729231404880,0.17301052,68069.0,68068.0,0.001656]
[1729231405090,0.17701052,68069.0,68068.0,0.001656]
[1729231405310,0.25871052,68069.0,68068.0,0.001656]
[1729231405529,0.26071052,68069.0,68068.0,0.001656]
[1729231405759,0.32838211,68069.0,68068.0,0.001656]
[1729231405964,0.08467159,68069.0,68068.0,0.001656]
[1729231406172,0.23290423,68069.0,68068.0,0.001656]
[1729231406375,0.22890423,68069.0,68068.0,0.001656]
[1729231406617,0.18101052,68069.0,68068.0,0.001656]
[1729231406820,0.25568211,68069.0,68068.0,0.002656]
[1729231407035,0.25368211,68069.0,68068.0,0.002656]
[1729231407454,0.25768211,68069.0,68068.0,0.002656]
[1729231407660,0.23591427,68069.0,68068.0,0.002656]
[1729231408310,0.014,68069.0,68068.0,0.001656]
[1729231408520,0.17801052,68069.0,68068.0,0.001656]
[1729231408728,0.18401052,68069.0,68068.0,0.001656]
[1729231408933,0.19201052,68069.0,68068.0,0.001656]
[1729231409143,0.18901052,68069.0,68068.0,0.001656]
[1729231409361,0.23291427,68069.0,68068.0,0.002656]
[1729231409565,0.24091427,68069.0,68068.0,0.002656]
[1729231409770,0.2329199,68069.0,68068.0,0.002656]
[1729231409985,0.2249199,68069.0,68068.0,0.001656]
[1729231410192,0.25284814,68069.0,68068.0,0.001656]
[1729231410459,0.31771221,68069.0,68068.0,0.002656]
[1729231410754,0.32971221,68069.0,68068.0,0.002656]
[1729231410980,0.27087459,68069.0,68068.0,0.002656]
[1729231411200,0.41778359,68069.0,68068.0,0.002656]
[1729231411733,0.62581772,68069.0,68068.0,0.002656]
[1729231411993,0.50404426,68069.0,68068.0,0.002656]
[1729231412228,0.60181772,68069.0,68068.0,0.001656]
[1729231412485,0.59292412,68069.0,68068.0,0.001656]
[1729231412731,0.64713687,68069.0,68068.0,0.002656]
[1729231412964,0.66013687,68069.0,68068.0,0.002656]
[1729231413177,0.65013687,68069.0,68068.0,0.001656]
[1729231413378,0.65013687,68069.0,68068.0,0.002656]
[1729231413379,0.66113687,68069.0,68068.0,0.002656]
[1729231413778,0.81414739,68069.0,68068.0,0.002656]
[1729231414095,0.63713687,68069.0,68068.0,0.001656]
[1729231414353,0.63717538,68069.0,68068.0,0.001656]
[1729231414558,0.78613453,68069.0,68068.0,0.001656]
[1729231414941,0.80013453,68069.0,68068.0,0.001656]
[1729231415060,0.96614505,68069.0,68068.0,0.001656]
[1729231415458,1.07254505,68069.0,68068.0,0.002656]
[1729231416778,0.74052401,68069.0,68068.0,0.002656]
[1729231417013,0.66804192,68069.0,68068.0,0.002656]
[1729231418994,0.83027876,68069.0,68068.0,0.002656]
[1729231419574,1.16838928,68069.0,68068.0,0.002656]
[1729231419774,1.26838928,68069.0,68068.0,0.002656]
[1729231419991,1.41734843,68069.0,68068.0,0.002656]
[1729231421267,1.25133791,68069.0,68068.0,0.002656]
[1729231422312,1.41734843,68069.0,68068.0,0.002656]
[1729231424548,1.25518518,68069.0,68068.0,0.002656]
[1729231425539,0.153935,68057.0,68056.0,0.22231279]
[1729231425749,0.31994552,68057.0,68056.0,0.22231279]
[1729231425972,0.31994552,68057.0,68048.0,0.0789]
[1729231425973,0.153937,68056.0,68048.0,0.0789]
[1729231426407,0.21989538,68056.0,68048.0,0.0789]
[1729231426609,0.21789538,68056.0,68048.0,0.0789]
[1729231428338,0.16601052,68056.0,68048.0,0.0789]
[1729231428590,0.31294752,68056.0,68048.0,0.0789]
[1729231428799,0.31894752,68056.0,68048.0,0.0789]
[1729231429212,0.31894752,68056.0,68048.0,0.225853]
[1729231429213,0.152937,68056.0,68048.0,0.225853]
[1729231429473,0.31894752,68056.0,68048.0,0.225853]
[1729231429682,0.31894752,68056.0,68048.0,0.0789]
[1729231430090,0.31894752,68056.0,68048.0,0.225854]
[1729231431093,0.31894752,68056.0,68048.0,0.0789]
[1729231432140,0.31894752,68056.0,68049.0,0.146952]
[1729231432326,0.31894752,68056.0,68048.0,0.0789]
[1729231432532,0.31894752,68056.0,68048.0,0.225854]
[1729231433994,0.31894752,68056.0,68048.0,0.0789]
[1729231439200,0.36291407,68056.0,68048.0,0.0789]
[1729231439571,0.31894752,68056.0,68048.0,0.0789]
[1729231440486,0.36291359,68056.0,68048.0,0.0789]
[1729231440716,0.31894752,68056.0,68048.0,0.0789]
[1729231440902,0.3629137,68056.0,68048.0,0.0789]
[1729231441141,0.31894752,68056.0,68048.0,0.0789]
[1729231441354,0.36291371,68056.0,68048.0,0.0789]
[1729231441555,0.31894752,68056.0,68048.0,0.0789]
[1729231441682,0.36291371,68056.0,68048.0,0.0789]
[1729231441893,0.31894752,68056.0,68048.0,0.0789]
[1729231442089,0.36291371,68056.0,68048.0,0.0789]
[1729231443102,0.36291371,68056.0,68048.0,0.225854]
[1729231443317,0.31894752,68056.0,68048.0,0.0789]
[1729231443533,0.36291371,68056.0,68048.0,0.0789]
[1729231443778,0.19690319,68056.0,68048.0,0.0789]
[1729231444003,0.31132195,68056.0,68048.0,0.0789]
[1729231444218,0.26735576,68056.0,68048.0,0.0789]
[1729231445238,0.31132195,68056.0,68048.0,0.0789]
[1729231445449,0.26735576,68056.0,68048.0,0.0789]
[1729231446247,0.42978881,68056.0,68048.0,0.0789]
[1729231446444,0.51772119,68056.0,68048.0,0.0789]
[1729231447251,0.53970429,68056.0,68048.0,0.0789]
[1729231447859,0.53970429,68056.0,68055.0,0.6978991]
[1729231447860,0.26735576,68056.0,68055.0,0.6978991]
[1729231448323,0.33339673,68056.0,68055.0,0.71066192]
[1729231449110,0.26735576,68056.0,68055.0,0.71066192]
[1729231449856,0.33339673,68056.0,68055.0,0.71066192]
[1729231450052,0.33339673,68056.0,68055.0,0.6978991]
[1729231450259,0.43000035,68056.0,68055.0,0.71066192]
[1729231450686,0.26735576,68056.0,68055.0,0.71066192]
[1729231450885,0.26735576,68056.0,68055.0,0.6978991]
[1729231451087,0.38177452,68056.0,68055.0,0.71066192]
[1729231451308,0.54643065,68056.0,68055.0,0.71066192]
[1729231451764,0.57311314,68056.0,68055.0,0.71066192]
[1729231452013,0.57111314,68056.0,68055.0,0.71066192]
[1729231452212,0.54443065,68056.0,68055.0,0.71066192]
[1729231453235,0.54525965,68056.0,68055.0,0.71066192]
[1729231454137,0.81636907,68056.0,68055.0,0.71066192]
[1729231454366,0.74818128,68056.0,68055.0,0.25934437]
[1729231454582,0.7289558,68056.0,68055.0,0.24658155]
[1729231455023,0.50011828,68056.0,68055.0,0.24658155]
[1729231455478,0.7289558,68056.0,68055.0,0.24658155]
[1729231455692,0.7419558,68056.0,68055.0,0.24758155]
[1729231456368,0.7429558,68056.0,68055.0,0.24658155]
[1729231456576,0.7289558,68056.0,68055.0,0.24658155]
[1729231457189,0.7429558,68056.0,68055.0,0.24658155]
[1729231457809,0.89191495,68056.0,68055.0,0.24658155]
[1729231458017,0.87791495,68056.0,68055.0,0.24658155]
[1729231458663,0.89191495,68056.0,68055.0,0.24758155]
[1729231459087,0.87791495,68056.0,68055.0,0.24658155]
[1729231459331,0.89191495,68056.0,68055.0,0.24658155]
[1729231459544,0.90591495,68056.0,68055.0,0.24758155]
[1729231462738,0.7569558,68056.0,68055.0,0.24758155]
[1729231463962,0.86700232,68056.0,68055.0,0.24758155]
[1729231464211,0.7569558,68056.0,68055.0,0.24758155]
[1729231464672,0.88900847,68056.0,68055.0,0.24758155]
[1729231465154,0.7577848,68056.0,68055.0,0.24758155]
[1729231465369,0.90674395,68056.0,68055.0,0.24758155]
[1729231465864,1.03878856,68056.0,68055.0,0.24758155]
[1729231466110,0.90674395,68056.0,68055.0,0.24758155]
[1729231466553,1.03878543,68056.0,68055.0,0.24758155]
[1729231467469,0.90674395,68056.0,68055.0,0.24758155]
[1729231469604,1.06921716,68056.0,68055.0,0.24758155]
[1729231472034,1.10872381,68056.0,68055.0,0.24758155]
[1729231472272,0.88427431,68056.0,68055.0,0.24758155]
[1729231472510,1.11311183,68056.0,68055.0,0.24758155]
[1729231473246,1.06921716,68056.0,68055.0,0.24758155]
[1729231475614,0.69142049,68056.0,68055.0,0.24758155]
[1729231475856,0.92025801,68056.0,68055.0,0.24758155]
[1729231478739,0.92016352,68056.0,68055.0,0.24758155]
[1729231481117,0.005,68037.0,68034.0,0.0801]
[1729231481330,0.146981,68036.0,68034.0,0.0801]
[1729231481539,0.26139976,68036.0,68034.0,0.0801]
[1729231481759,0.32738298,68036.0,68034.0,0.0801]
[1729231482018,0.26139976,68036.0,68034.0,0.0801]
[1729231483087,0.30538328,68036.0,68034.0,0.0801]
[1729231483317,0.26139976,68036.0,68034.0,0.0801]
[1729231483526,0.30538434,68036.0,68034.0,0.0801]
[1729231484471,0.30537939,68036.0,68034.0,0.0801]
[1729231485759,0.33337939,68036.0,68034.0,0.0801]
[1729231485976,0.28939976,68036.0,68034.0,0.0801]
[1729231486397,0.33337685,68036.0,68034.0,0.0801]
[1729231487296,0.28939976,68036.0,68034.0,0.0801]
[1729231488133,0.33337672,68036.0,68034.0,0.0801]
[1729231488560,0.21895796,68036.0,68034.0,0.0801]
[1729231488771,0.174981,68036.0,68035.0,0.182956]
[1729231488986,0.174981,68036.0,68035.0,0.19388864]
[1729231490102,0.160981,68036.0,68035.0,0.19388864]
[1729231490307,0.171981,68036.0,68035.0,0.182956]
[1729231491145,0.157981,68036.0,68035.0,0.182956]
[1729231491601,0.167981,68036.0,68035.0,0.182956]
[1729231492012,0.157981,68036.0,68035.0,0.182956]
[1729231492231,0.146981,68036.0,68035.0,0.182956]
[1729231492644,0.158981,68036.0,68035.0,0.182956]
[1729231492847,0.169981,68036.0,68035.0,0.182956]
[1729231494322,0.21395796,68036.0,68035.0,0.182956]
[1729231494532,0.169981,68036.0,68035.0,0.182956]
[1729231494974,0.21398831,68036.0,68035.0,0.182956]
[1729231495390,0.169981,68036.0,68035.0,0.182956]
[1729231496271,0.23600872,68036.0,68035.0,0.182956]
[1729231496501,0.33250302,68036.0,68035.0,0.182956]
[1729231497400,0.42047005,68036.0,68035.0,0.182956]
[1729231498016,0.33250302,68036.0,68035.0,0.182956]
[1729231498428,0.42047005,68036.0,68035.0,0.182956]
[1729231499472,0.33250302,68036.0,68035.0,0.182956]
[1729231500637,0.4425213,68036.0,68035.0,0.001656]
[1729231501373,0.58807254,68036.0,68035.0,0.001656]
[1729231501857,0.47805426,68036.0,68035.0,0.001656]
[1729231503294,0.33250302,68036.0,68035.0,0.001656]
[1729231508365,0.43750302,68036.0,68035.0,0.001656]
[1729231509835,0.43450302,68036.0,68035.0,0.001656]
[1729231510388,0.66686349,68036.0,68035.0,0.001656]
[1729231510592,0.75955002,68036.0,68035.0,0.001656]
[1729231511041,0.58362885,68036.0,68035.0,0.001656]
[1729231511464,0.71584569,68036.0,68035.0,0.001656]